[Event "Titled Tuesday Blitz May 17 Early 2022"]
[White "Lazavik, Denis"]
[Black "Fiorito, Fabian"]
[WhiteFideId "13515110"]
[BlackFideId "100200"]
[WhiteElo "2437"]
[BlackElo "2395"]
[Result "1-0"]
[Round "01"]
[TimeControl "180+1"]
[Date "2022.05.17"]
[WhiteClock "0:01:37"]
[BlackClock "0:00:39"]

1. d4 {[%clk 0:02:59]}  d5 {[%clk 0:03:00]} 2. c4 {[%clk 0:02:59]}  c6 {[%clk 0:03:00]} 3. Nf3 {[%clk 0:03:00]}  Nf6 {[%clk 0:03:00]} 4. Qc2 {[%clk 0:03:00]}  e6 {[%clk 0:02:58]} 5. g3 {[%clk 0:02:58]}  Nbd7 {[%clk 0:02:54]} 6. Bg2 {[%clk 0:02:57]}  Be7 {[%clk 0:02:53]} 7. O-O {[%clk 0:02:57]}  O-O {[%clk 0:02:53]} 8. b3 {[%clk 0:02:56]}  b6 {[%clk 0:02:46]} 9. Rd1 {[%clk 0:02:56]}  Bb7 {[%clk 0:02:46]} 10. Nc3 {[%clk 0:02:55]}  Rc8 {[%clk 0:02:37]} 11. e4 {[%clk 0:02:53]}  dxe4 {[%clk 0:02:30]} 12. Ng5 {[%clk 0:02:52]}  c5 {[%clk 0:01:43]} 13. dxc5 {[%clk 0:02:51]}  Bxc5 {[%clk 0:01:38]} 14. Bxe4 {[%clk 0:02:15]}  Bxe4 {[%clk 0:01:35]} 15. Ncxe4 {[%clk 0:02:13]}  Qe7 {[%clk 0:01:28]} 16. Rxd7 {[%clk 0:01:57]}  Nxd7 {[%clk 0:01:07]} 17. Nxc5 {[%clk 0:01:54]}  Nf6 {[%clk 0:00:53]} 18. Nce4 {[%clk 0:01:50]}  g6 {[%clk 0:00:53]} 19. Bb2 {[%clk 0:01:46]}  Nxe4 {[%clk 0:00:52]} 20. Nxe4 {[%clk 0:01:47]}  f5 {[%clk 0:00:51]} 21. Nd2 {[%clk 0:01:40]}  e5 {[%clk 0:00:50]} 22. Re1 {[%clk 0:01:39]}  e4 {[%clk 0:00:50]} 23. Qc3 {[%clk 0:01:39]}  Kf7 {[%clk 0:00:41]} 24. Qg7+ {[%clk 0:01:38]}  Ke8 {[%clk 0:00:41]} 25. Qxe7+ {[%clk 0:01:38]}  Kxe7 {[%clk 0:00:40]} 26. Ba3+ {[%clk 0:01:38]}  Kf7 {[%clk 0:00:40]} 27. Bxf8 {[%clk 0:01:38]}  Rxf8 {[%clk 0:00:41]} 28. f3 {[%clk 0:01:37]}  Rd8 {[%clk 0:00:41]} 29. Re2 {[%clk 0:01:37]}  e3 {[%clk 0:00:39]} 30. Nf1 {[%clk 0:01:37]} 1-0


[Site "https://www.chess.com"]

[Event "Titled Tuesday Blitz May 17 Early 2022"]
[White "Neiksans, Arturs"]
[Black "Perera Alfonso, Rene Humberto"]
[WhiteFideId "11601388"]
[BlackFideId "3514722"]
[WhiteElo "2447"]
[BlackElo "2313"]
[Result "1-0"]
[Round "01"]
[TimeControl "180+1"]
[Date "2022.05.17"]
[WhiteClock "0:01:56"]
[BlackClock "0:01:02"]

1. e4 {[%clk 0:03:00]}  c5 {[%clk 0:02:59]} 2. Nf3 {[%clk 0:03:01]}  d6 {[%clk 0:02:58]} 3. Bb5+ {[%clk 0:03:00]}  Nc6 {[%clk 0:02:55]} 4. O-O {[%clk 0:03:00]}  Bd7 {[%clk 0:02:55]} 5. Re1 {[%clk 0:03:00]}  Nf6 {[%clk 0:02:53]} 6. c3 {[%clk 0:03:00]}  a6 {[%clk 0:02:53]} 7. Bf1 {[%clk 0:03:00]}  Bg4 {[%clk 0:02:52]} 8. d4 {[%clk 0:02:59]}  cxd4 {[%clk 0:02:50]} 9. cxd4 {[%clk 0:03:00]}  Bxf3 {[%clk 0:02:50]} 10. gxf3 {[%clk 0:03:00]}  e5 {[%clk 0:02:48]} 11. Be3 {[%clk 0:02:59]}  Be7 {[%clk 0:02:45]} 12. Nc3 {[%clk 0:02:59]}  O-O {[%clk 0:02:44]} 13. f4 {[%clk 0:02:49]}  Rc8 {[%clk 0:02:34]} 14. Bh3 {[%clk 0:02:40]}  exd4 {[%clk 0:01:53]} 15. Bxd4 {[%clk 0:02:39]}  Nxd4 {[%clk 0:01:54]} 16. Qxd4 {[%clk 0:02:38]}  Rc5 {[%clk 0:01:53]} 17. Rad1 {[%clk 0:02:36]}  Rh5 {[%clk 0:01:52]} 18. Rd3 {[%clk 0:02:30]}  Qa5 {[%clk 0:01:50]} 19. b4 {[%clk 0:02:26]}  Qc7 {[%clk 0:01:45]} 20. Ne2 {[%clk 0:02:14]}  h6 {[%clk 0:01:37]} 21. Rc1 {[%clk 0:02:10]}  Qb8 {[%clk 0:01:36]} 22. Kg2 {[%clk 0:02:08]}  Rd8 {[%clk 0:01:34]} 23. Ng3 {[%clk 0:02:07]}  Rh4 {[%clk 0:01:33]} 24. Nf5 {[%clk 0:02:06]}  Nh5 {[%clk 0:01:12]} 25. Nxe7+ {[%clk 0:02:05]}  Kf8 {[%clk 0:01:12]} 26. Nd5 {[%clk 0:02:04]}  Re8 {[%clk 0:01:06]} 27. Rg3 {[%clk 0:01:56]}  Nxg3 {[%clk 0:01:03]} 28. hxg3 {[%clk 0:01:56]}  Rh5 {[%clk 0:01:02]} 29. Bg4 {[%clk 0:01:56]} 1-0


[Site "https://www.chess.com"]

[Event "Titled Tuesday Blitz May 17 Early 2022"]
[White "Nguyen Hong Nhung"]
[Black "Svane, Frederik"]
[WhiteFideId "12412201"]
[BlackFideId "12923044"]
[WhiteElo "1758"]
[BlackElo "2459"]
[Result "0-1"]
[Round "01"]
[TimeControl "180+1"]
[Date "2022.05.17"]
[WhiteClock "0:00:10"]
[BlackClock "0:00:34"]

1. e4 {[%clk 0:03:00]}  c5 {[%clk 0:02:58]} 2. Nc3 {[%clk 0:02:59]}  Nc6 {[%clk 0:02:58]} 3. Bb5 {[%clk 0:02:59]}  g6 {[%clk 0:02:57]} 4. Bxc6 {[%clk 0:02:59]}  bxc6 {[%clk 0:02:58]} 5. d3 {[%clk 0:02:59]}  Bg7 {[%clk 0:02:58]} 6. Be3 {[%clk 0:02:59]}  Rb8 {[%clk 0:02:56]} 7. Qc1 {[%clk 0:02:36]}  Qa5 {[%clk 0:02:53]} 8. Ne2 {[%clk 0:02:35]}  Nf6 {[%clk 0:02:45]} 9. O-O {[%clk 0:02:32]}  O-O {[%clk 0:02:45]} 10. Rb1 {[%clk 0:02:28]}  d5 {[%clk 0:02:44]} 11. exd5 {[%clk 0:02:17]}  cxd5 {[%clk 0:02:42]} 12. d4 {[%clk 0:02:15]}  cxd4 {[%clk 0:02:41]} 13. Bxd4 {[%clk 0:02:13]}  Re8 {[%clk 0:02:34]} 14. Be5 {[%clk 0:02:02]}  Rb7 {[%clk 0:02:32]} 15. Rd1 {[%clk 0:01:56]}  e6 {[%clk 0:02:16]} 16. h3 {[%clk 0:01:53]}  Bd7 {[%clk 0:02:15]} 17. Nd4 {[%clk 0:01:47]}  Rc8 {[%clk 0:02:14]} 18. Qg5 {[%clk 0:01:41]}  Qd8 {[%clk 0:02:13]} 19. Re1 {[%clk 0:01:32]}  Ne8 {[%clk 0:02:09]} 20. Qxd8 {[%clk 0:01:22]}  Rxd8 {[%clk 0:02:10]} 21. Bxg7 {[%clk 0:01:22]}  Kxg7 {[%clk 0:02:11]} 22. b3 {[%clk 0:01:18]}  Rc8 {[%clk 0:02:10]} 23. Re3 {[%clk 0:01:16]}  Nd6 {[%clk 0:02:10]} 24. Nce2 {[%clk 0:01:07]}  Re8 {[%clk 0:01:57]} 25. Nf3 {[%clk 0:01:02]}  Rc7 {[%clk 0:01:55]} 26. Rc1 {[%clk 0:01:00]}  f6 {[%clk 0:01:47]} 27. Rc3 {[%clk 0:00:51]}  Rec8 {[%clk 0:01:46]} 28. Rxc7 {[%clk 0:00:49]}  Rxc7 {[%clk 0:01:47]} 29. Nf4 {[%clk 0:00:43]}  g5 {[%clk 0:01:39]} 30. Ne2 {[%clk 0:00:40]}  e5 {[%clk 0:01:37]} 31. Kf1 {[%clk 0:00:38]}  Kf7 {[%clk 0:01:35]} 32. Ke1 {[%clk 0:00:38]}  Ke6 {[%clk 0:01:35]} 33. Nd2 {[%clk 0:00:35]}  Be8 {[%clk 0:01:28]} 34. c4 {[%clk 0:00:31]}  d4 {[%clk 0:01:27]} 35. b4 {[%clk 0:00:24]}  Ba4 {[%clk 0:01:03]} 36. c5 {[%clk 0:00:23]}  Nf5 {[%clk 0:00:54]} 37. Nc4 {[%clk 0:00:21]}  Ne7 {[%clk 0:00:54]} 38. Kd2 {[%clk 0:00:20]}  Nd5 {[%clk 0:00:53]} 39. a3 {[%clk 0:00:20]}  Bb5 {[%clk 0:00:52]} 40. Nd6 {[%clk 0:00:18]}  Bxe2 {[%clk 0:00:51]} 41. Kxe2 {[%clk 0:00:19]}  Nc3+ {[%clk 0:00:52]} 42. Kd3 {[%clk 0:00:19]}  Kd5 {[%clk 0:00:52]} 43. f3 {[%clk 0:00:18]}  Rc6 {[%clk 0:00:47]} 44. Nc4 {[%clk 0:00:16]}  f5 {[%clk 0:00:41]} 45. Ne3+ {[%clk 0:00:16]}  Ke6 {[%clk 0:00:42]} 46. Nc4 {[%clk 0:00:16]}  e4+ {[%clk 0:00:40]} 47. fxe4 {[%clk 0:00:15]}  fxe4+ {[%clk 0:00:41]} 48. Kxd4 {[%clk 0:00:16]}  Ne2+ {[%clk 0:00:41]} 49. Kxe4 {[%clk 0:00:16]}  Nxc1 {[%clk 0:00:42]} 50. Kd4 {[%clk 0:00:14]}  Nb3+ {[%clk 0:00:42]} 51. Kc3 {[%clk 0:00:14]}  Nxc5 {[%clk 0:00:42]} 52. bxc5 {[%clk 0:00:14]}  Rxc5 {[%clk 0:00:43]} 53. Kd4 {[%clk 0:00:15]}  Rd5+ {[%clk 0:00:43]} 54. Ke4 {[%clk 0:00:15]}  Rb5 {[%clk 0:00:42]} 55. Kd4 {[%clk 0:00:13]}  Rb3 {[%clk 0:00:40]} 56. Kc5 {[%clk 0:00:12]}  Rg3 {[%clk 0:00:40]} 57. Kb5 {[%clk 0:00:12]}  Rxg2 {[%clk 0:00:39]} 58. Ka6 {[%clk 0:00:13]}  Rc2 {[%clk 0:00:39]} 59. Na5 {[%clk 0:00:12]}  Rc3 {[%clk 0:00:37]} 60. a4 {[%clk 0:00:11]}  Ra3 {[%clk 0:00:37]} 61. Kb5 {[%clk 0:00:12]}  a6+ {[%clk 0:00:37]} 62. Kb4 {[%clk 0:00:11]}  Rxh3 {[%clk 0:00:37]} 63. Nb7 {[%clk 0:00:11]}  Kd5 {[%clk 0:00:36]} 64. Ka5 {[%clk 0:00:10]}  Ra3 {[%clk 0:00:33]} 65. Nc5 {[%clk 0:00:10]}  Kxc5 {[%clk 0:00:33]} 66. Kxa6 {[%clk 0:00:10]}  Rxa4+ {[%clk 0:00:33]} 67. Kb7 {[%clk 0:00:10]}  Ra5 {[%clk 0:00:34]} 0-1


[Site "https://www.chess.com"]

[Event "Titled Tuesday Blitz May 17 Early 2022"]
[White "Obrien, Matthew"]
[Black "Paravyan, David"]
[WhiteFideId "2059150"]
[BlackFideId "4194985"]
[WhiteElo "2538"]
[BlackElo "2569"]
[Result "0-1"]
[Round "01"]
[TimeControl "180+1"]
[Date "2022.05.17"]
[WhiteClock "0:00:01"]
[BlackClock "0:00:29"]

1. e4 {[%clk 0:02:59]}  e5 {[%clk 0:02:59]} 2. Nf3 {[%clk 0:02:59]}  Nf6 {[%clk 0:03:00]} 3. Nxe5 {[%clk 0:02:57]}  d6 {[%clk 0:02:59]} 4. Nf3 {[%clk 0:02:57]}  Nxe4 {[%clk 0:03:00]} 5. Bd3 {[%clk 0:02:57]}  Nf6 {[%clk 0:02:54]} 6. O-O {[%clk 0:02:54]}  Be7 {[%clk 0:02:54]} 7. Re1 {[%clk 0:02:51]}  O-O {[%clk 0:02:55]} 8. h3 {[%clk 0:02:51]}  d5 {[%clk 0:02:53]} 9. c3 {[%clk 0:02:50]}  Re8 {[%clk 0:02:51]} 10. Bc2 {[%clk 0:02:50]}  Nbd7 {[%clk 0:02:52]} 11. d4 {[%clk 0:02:50]}  Nf8 {[%clk 0:02:49]} 12. Ne5 {[%clk 0:02:48]}  Be6 {[%clk 0:02:45]} 13. Nd2 {[%clk 0:02:48]}  c5 {[%clk 0:02:36]} 14. dxc5 {[%clk 0:02:47]}  Bxc5 {[%clk 0:02:36]} 15. Nb3 {[%clk 0:02:46]}  Bb6 {[%clk 0:02:37]} 16. Be3 {[%clk 0:02:45]}  N8d7 {[%clk 0:02:28]} 17. Nxd7 {[%clk 0:02:43]}  Bxd7 {[%clk 0:02:24]} 18. Bd4 {[%clk 0:02:36]}  Rxe1+ {[%clk 0:02:21]} 19. Qxe1 {[%clk 0:02:37]}  Bxd4 {[%clk 0:02:21]} 20. Nxd4 {[%clk 0:02:37]}  Qb6 {[%clk 0:02:22]} 21. Qd2 {[%clk 0:02:05]}  Re8 {[%clk 0:02:21]} 22. Bd3 {[%clk 0:01:50]}  h6 {[%clk 0:02:19]} 23. b3 {[%clk 0:01:19]}  Qc5 {[%clk 0:02:18]} 24. b4 {[%clk 0:01:11]}  Qc7 {[%clk 0:02:17]} 25. a4 {[%clk 0:01:08]}  Rc8 {[%clk 0:02:13]} 26. Ra3 {[%clk 0:01:05]}  Qe5 {[%clk 0:02:08]} 27. a5 {[%clk 0:00:55]}  a6 {[%clk 0:01:47]} 28. Ra1 {[%clk 0:00:51]}  Re8 {[%clk 0:01:45]} 29. Rb1 {[%clk 0:00:23]}  Ne4 {[%clk 0:01:17]} 30. Bxe4 {[%clk 0:00:21]}  dxe4 {[%clk 0:01:18]} 31. Qe3 {[%clk 0:00:20]}  Qc7 {[%clk 0:01:16]} 32. Rc1 {[%clk 0:00:16]}  Qc4 {[%clk 0:01:14]} 33. Re1 {[%clk 0:00:13]}  Rc8 {[%clk 0:00:59]} 34. Rc1 {[%clk 0:00:11]}  Bc6 {[%clk 0:00:50]} 35. Nxc6 {[%clk 0:00:04]}  Rxc6 {[%clk 0:00:49]} 36. Qd2 {[%clk 0:00:03]}  Kh7 {[%clk 0:00:47]} 37. Qd8 {[%clk 0:00:02]}  f5 {[%clk 0:00:44]} 38. Qd7 {[%clk 0:00:02]}  Qb5 {[%clk 0:00:34]} 39. Qd2 {[%clk 0:00:01]}  Qe5 {[%clk 0:00:30]} 40. Qe3 {[%clk 0:00:02]}  f4 {[%clk 0:00:30]} 41. Qd2 {[%clk 0:00:02]}  Rg6 {[%clk 0:00:29]} 42. Kh1 {[%clk 0:00:01]}  Qg5 {[%clk 0:00:29]} 0-1


[Site "https://www.chess.com"]

[Event "Titled Tuesday Blitz May 17 Early 2022"]
[White "Oparin, Grigoriy"]
[Black "Raahul V S"]
[WhiteFideId "24125890"]
[BlackFideId "25035525"]
[WhiteElo "2665"]
[BlackElo "2185"]
[Result "1-0"]
[Round "01"]
[TimeControl "180+1"]
[Date "2022.05.17"]
[WhiteClock "0:00:45"]
[BlackClock "0:00:12"]

1. c4 {[%clk 0:03:00]}  c5 {[%clk 0:02:58]} 2. Nf3 {[%clk 0:03:01]}  Nf6 {[%clk 0:02:58]} 3. d4 {[%clk 0:03:01]}  cxd4 {[%clk 0:02:58]} 4. Nxd4 {[%clk 0:03:02]}  Nc6 {[%clk 0:02:58]} 5. Nc3 {[%clk 0:03:02]}  g6 {[%clk 0:02:56]} 6. g3 {[%clk 0:03:02]}  Bg7 {[%clk 0:02:55]} 7. Bg2 {[%clk 0:03:03]}  O-O {[%clk 0:02:56]} 8. O-O {[%clk 0:03:03]}  a6 {[%clk 0:02:53]} 9. e3 {[%clk 0:02:51]}  Qc7 {[%clk 0:02:50]} 10. Qe2 {[%clk 0:02:49]}  d6 {[%clk 0:02:48]} 11. b3 {[%clk 0:02:46]}  Bg4 {[%clk 0:02:08]} 12. f3 {[%clk 0:02:46]}  Bd7 {[%clk 0:01:53]} 13. Bb2 {[%clk 0:02:44]}  Rfe8 {[%clk 0:01:48]} 14. Rac1 {[%clk 0:02:42]}  Rad8 {[%clk 0:01:46]} 15. Rfd1 {[%clk 0:02:42]}  Qb8 {[%clk 0:01:45]} 16. Nxc6 {[%clk 0:02:40]}  Bxc6 {[%clk 0:01:45]} 17. e4 {[%clk 0:02:39]}  Nd7 {[%clk 0:01:43]} 18. h4 {[%clk 0:02:38]}  Nc5 {[%clk 0:01:39]} 19. h5 {[%clk 0:02:36]}  Ne6 {[%clk 0:01:31]} 20. Qe3 {[%clk 0:02:36]}  gxh5 {[%clk 0:01:24]} 21. f4 {[%clk 0:02:33]}  Bh6 {[%clk 0:01:15]} 22. Ne2 {[%clk 0:02:29]}  b5 {[%clk 0:01:07]} 23. Qf3 {[%clk 0:02:22]}  Qa7+ {[%clk 0:01:03]} 24. Kh2 {[%clk 0:02:19]}  Ng7 {[%clk 0:00:59]} 25. cxb5 {[%clk 0:02:13]}  Bxb5 {[%clk 0:00:59]} 26. Nd4 {[%clk 0:02:13]}  Bd7 {[%clk 0:00:57]} 27. Nc6 {[%clk 0:01:48]}  Qb6 {[%clk 0:00:37]} 28. Bd4 {[%clk 0:01:28]}  Qb5 {[%clk 0:00:20]} 29. a4 {[%clk 0:01:28]}  Qb7 {[%clk 0:00:19]} 30. Nxd8 {[%clk 0:01:23]}  Rxd8 {[%clk 0:00:20]} 31. e5 {[%clk 0:01:23]}  d5 {[%clk 0:00:20]} 32. Qxd5 {[%clk 0:01:17]}  Qxd5 {[%clk 0:00:19]} 33. Bxd5 {[%clk 0:01:18]}  Bg4 {[%clk 0:00:19]} 34. Bb6 {[%clk 0:01:18]}  Rb8 {[%clk 0:00:19]} 35. Ba7 {[%clk 0:01:17]}  Rf8 {[%clk 0:00:17]} 36. Rf1 {[%clk 0:01:10]}  Nf5 {[%clk 0:00:17]} 37. Bb6 {[%clk 0:00:57]}  e6 {[%clk 0:00:17]} 38. Bf3 {[%clk 0:00:55]}  f6 {[%clk 0:00:16]} 39. exf6 {[%clk 0:00:54]}  Rxf6 {[%clk 0:00:16]} 40. Rc8+ {[%clk 0:00:54]}  Kg7 {[%clk 0:00:16]} 41. Bxg4 {[%clk 0:00:52]}  hxg4 {[%clk 0:00:16]} 42. Rd1 {[%clk 0:00:52]}  Kg6 {[%clk 0:00:16]} 43. Rd7 {[%clk 0:00:49]}  Bg7 {[%clk 0:00:14]} 44. Kg2 {[%clk 0:00:45]}  h5 {[%clk 0:00:14]} 45. Bd4 {[%clk 0:00:45]}  Nxd4 {[%clk 0:00:13]} 46. Rxd4 {[%clk 0:00:46]}  e5 {[%clk 0:00:12]} 47. fxe5 {[%clk 0:00:44]}  Rb6 {[%clk 0:00:12]} 48. Rd6+ {[%clk 0:00:44]}  Rxd6 {[%clk 0:00:12]} 49. exd6 {[%clk 0:00:45]} 1-0


[Site "https://www.chess.com"]

[Event "Titled Tuesday Blitz May 17 Early 2022"]
[White "Royal, Shreyas"]
[Black "Shimanov, Aleksandr"]
[WhiteFideId "448869"]
[BlackFideId "4198603"]
[WhiteElo "1986"]
[BlackElo "2605"]
[Result "0-1"]
[Round "01"]
[TimeControl "180+1"]
[Date "2022.05.17"]
[WhiteClock "0:01:15"]
[BlackClock "0:00:54"]

1. d4 {[%clk 0:02:59]}  Nf6 {[%clk 0:02:54]} 2. c4 {[%clk 0:02:58]}  g6 {[%clk 0:02:54]} 3. Nc3 {[%clk 0:02:56]}  Bg7 {[%clk 0:02:54]} 4. e4 {[%clk 0:02:56]}  d6 {[%clk 0:02:51]} 5. Nge2 {[%clk 0:02:56]}  O-O {[%clk 0:02:50]} 6. Ng3 {[%clk 0:02:56]}  c5 {[%clk 0:02:41]} 7. d5 {[%clk 0:02:55]}  e6 {[%clk 0:02:41]} 8. Be2 {[%clk 0:02:50]}  exd5 {[%clk 0:02:39]} 9. cxd5 {[%clk 0:02:51]}  a6 {[%clk 0:02:39]} 10. a4 {[%clk 0:02:50]}  Ne8 {[%clk 0:02:35]} 11. O-O {[%clk 0:02:49]}  Nd7 {[%clk 0:02:34]} 12. Be3 {[%clk 0:02:43]}  Rb8 {[%clk 0:02:34]} 13. f4 {[%clk 0:02:38]}  Nc7 {[%clk 0:02:34]} 14. e5 {[%clk 0:02:25]}  dxe5 {[%clk 0:02:32]} 15. f5 {[%clk 0:02:26]}  Ne8 {[%clk 0:02:06]} 16. Nce4 {[%clk 0:02:12]}  b5 {[%clk 0:02:00]} 17. Nxc5 {[%clk 0:02:05]}  Nd6 {[%clk 0:01:53]} 18. Nce4 {[%clk 0:02:05]}  Nf6 {[%clk 0:01:29]} 19. Bg5 {[%clk 0:01:49]}  Qb6+ {[%clk 0:01:27]} 20. Nf2 {[%clk 0:01:43]}  Nxf5 {[%clk 0:01:26]} 21. a5 {[%clk 0:01:41]}  Qa7 {[%clk 0:01:18]} 22. Qb3 {[%clk 0:01:34]}  Nd4 {[%clk 0:01:15]} 23. Qd3 {[%clk 0:01:34]}  Nxd5 {[%clk 0:01:14]} 24. Kh1 {[%clk 0:01:31]}  Nf4 {[%clk 0:01:12]} 25. Bxf4 {[%clk 0:01:28]}  exf4 {[%clk 0:01:13]} 26. Nge4 {[%clk 0:01:27]}  Bf5 {[%clk 0:01:06]} 27. Bf3 {[%clk 0:01:27]}  Rbd8 {[%clk 0:01:04]} 28. Rac1 {[%clk 0:01:23]}  Rfe8 {[%clk 0:01:00]} 29. Qa3 {[%clk 0:01:17]}  Nxf3 {[%clk 0:00:54]} 30. gxf3 {[%clk 0:01:16]}  Qe3 {[%clk 0:00:55]} 31. Rc3 {[%clk 0:01:15]}  Bxc3 {[%clk 0:00:54]} 0-1


[Site "https://www.chess.com"]

[Event "Titled Tuesday Blitz May 17 Early 2022"]
[White "Sarana, Alexey"]
[Black "Bachmann, Axel"]
[WhiteFideId "24133795"]
[BlackFideId "3700488"]
[WhiteElo "2666"]
[BlackElo "2587"]
[Result "1-0"]
[Round "01"]
[TimeControl "180+1"]
[Date "2022.05.17"]
[WhiteClock "0:01:15"]
[BlackClock "0:00:09"]

1. d4 {[%clk 0:02:59]}  Nf6 {[%clk 0:02:03]} 2. c4 {[%clk 0:02:59]}  g6 {[%clk 0:02:00]} 3. Nc3 {[%clk 0:03:00]}  Bg7 {[%clk 0:01:43]} 4. e4 {[%clk 0:02:59]}  d6 {[%clk 0:01:41]} 5. Be2 {[%clk 0:03:00]}  O-O {[%clk 0:01:42]} 6. Be3 {[%clk 0:03:00]}  c5 {[%clk 0:01:39]} 7. d5 {[%clk 0:03:01]}  e6 {[%clk 0:01:38]} 8. Nf3 {[%clk 0:03:01]}  exd5 {[%clk 0:01:36]} 9. cxd5 {[%clk 0:03:02]}  a6 {[%clk 0:01:34]} 10. a4 {[%clk 0:03:02]}  Bg4 {[%clk 0:01:34]} 11. Nd2 {[%clk 0:03:03]}  Bxe2 {[%clk 0:01:34]} 12. Qxe2 {[%clk 0:03:04]}  Re8 {[%clk 0:01:34]} 13. O-O {[%clk 0:03:04]}  Nbd7 {[%clk 0:01:34]} 14. Bf4 {[%clk 0:03:04]}  Ne5 {[%clk 0:01:32]} 15. h3 {[%clk 0:03:04]}  Rc8 {[%clk 0:01:25]} 16. Bh2 {[%clk 0:03:02]}  c4 {[%clk 0:01:21]} 17. Bxe5 {[%clk 0:02:58]}  Rxe5 {[%clk 0:01:22]} 18. Nxc4 {[%clk 0:02:59]}  Re8 {[%clk 0:01:22]} 19. a5 {[%clk 0:02:48]}  Nh5 {[%clk 0:01:17]} 20. Ra4 {[%clk 0:02:38]}  Rc5 {[%clk 0:01:10]} 21. Rb4 {[%clk 0:02:23]}  Qc7 {[%clk 0:00:59]} 22. g3 {[%clk 0:02:21]}  Bxc3 {[%clk 0:00:55]} 23. bxc3 {[%clk 0:02:20]}  Nf6 {[%clk 0:00:47]} 24. e5 {[%clk 0:01:56]}  Nxd5 {[%clk 0:00:45]} 25. Nxd6 {[%clk 0:01:57]}  Nxc3 {[%clk 0:00:33]} 26. Qf3 {[%clk 0:01:56]}  Rb8 {[%clk 0:00:27]} 27. Ne8 {[%clk 0:01:26]}  Qxe5 {[%clk 0:00:24]} 28. Nf6+ {[%clk 0:01:26]}  Kg7 {[%clk 0:00:21]} 29. Nd7 {[%clk 0:01:26]}  Qc7 {[%clk 0:00:09]} 30. Nxb8 {[%clk 0:01:18]}  Qxb8 {[%clk 0:00:10]} 31. Rxb7 {[%clk 0:01:18]}  Qe8 {[%clk 0:00:10]} 32. Kg2 {[%clk 0:01:15]}  Rf5 {[%clk 0:00:09]} 33. Qxc3+ {[%clk 0:01:15]} 1-0


[Site "https://www.chess.com"]

[Event "Titled Tuesday Blitz May 17 Early 2022"]
[White "Slugin, Sergey"]
[Black "Maghsoodloo, Parham"]
[WhiteFideId "4122569"]
[BlackFideId "12539929"]
[WhiteElo "2358"]
[BlackElo "2630"]
[Result "1/2-1/2"]
[Round "01"]
[TimeControl "180+1"]
[Date "2022.05.17"]
[WhiteClock "0:00:07"]
[BlackClock "0:00:07"]

1. c4 {[%clk 0:03:00]}  e6 {[%clk 0:02:52]} 2. Nf3 {[%clk 0:03:00]}  d5 {[%clk 0:02:53]} 3. d4 {[%clk 0:03:00]}  c5 {[%clk 0:02:52]} 4. cxd5 {[%clk 0:02:44]}  exd5 {[%clk 0:02:51]} 5. Nc3 {[%clk 0:02:44]}  Nc6 {[%clk 0:02:50]} 6. dxc5 {[%clk 0:02:43]}  d4 {[%clk 0:02:45]} 7. Na4 {[%clk 0:02:36]}  b5 {[%clk 0:02:39]} 8. cxb6 {[%clk 0:02:29]}  axb6 {[%clk 0:02:38]} 9. e3 {[%clk 0:02:18]}  Bb4+ {[%clk 0:02:37]} 10. Bd2 {[%clk 0:02:15]}  dxe3 {[%clk 0:02:21]} 11. Bxb4 {[%clk 0:02:03]}  Qxd1+ {[%clk 0:02:15]} 12. Rxd1 {[%clk 0:02:02]}  Nxb4 {[%clk 0:02:08]} 13. Bb5+ {[%clk 0:02:02]}  Ke7 {[%clk 0:01:52]} 14. a3 {[%clk 0:02:03]}  Ba6 {[%clk 0:01:32]} 15. Bxa6 {[%clk 0:01:34]}  Rxa6 {[%clk 0:01:31]} 16. Nc3 {[%clk 0:01:34]}  Nc6 {[%clk 0:01:31]} 17. Nd5+ {[%clk 0:01:33]}  Kf8 {[%clk 0:01:31]} 18. fxe3 {[%clk 0:01:30]}  Nge7 {[%clk 0:01:26]} 19. Ke2 {[%clk 0:01:26]}  h5 {[%clk 0:01:19]} 20. Rhf1 {[%clk 0:01:24]}  f6 {[%clk 0:01:10]} 21. Nc7 {[%clk 0:01:11]}  Ra5 {[%clk 0:01:00]} 22. Nd4 {[%clk 0:00:46]}  Nxd4+ {[%clk 0:00:43]} 23. Rxd4 {[%clk 0:00:47]}  Kf7 {[%clk 0:00:44]} 24. Rd7 {[%clk 0:00:47]}  Re5 {[%clk 0:00:44]} 25. Rfd1 {[%clk 0:00:44]}  Kg6 {[%clk 0:00:44]} 26. Nd5 {[%clk 0:00:39]}  Nf5 {[%clk 0:00:43]} 27. Rd3 {[%clk 0:00:25]}  Rc8 {[%clk 0:00:38]} 28. Rc3 {[%clk 0:00:16]}  Rce8 {[%clk 0:00:27]} 29. Nxb6 {[%clk 0:00:16]}  Nxe3 {[%clk 0:00:27]} 30. Kd2 {[%clk 0:00:09]}  Nf1+ {[%clk 0:00:21]} 31. Kc2 {[%clk 0:00:07]}  Rb5 {[%clk 0:00:20]} 32. Nc4 {[%clk 0:00:04]}  Re2+ {[%clk 0:00:21]} 33. Kd3 {[%clk 0:00:03]}  Rxg2 {[%clk 0:00:20]} 34. a4 {[%clk 0:00:03]}  Rf5 {[%clk 0:00:14]} 35. a5 {[%clk 0:00:04]}  Nxh2 {[%clk 0:00:14]} 36. a6 {[%clk 0:00:04]}  Ng4 {[%clk 0:00:03]} 37. a7 {[%clk 0:00:04]}  Rf3+ {[%clk 0:00:02]} 38. Kd4 {[%clk 0:00:05]}  Rf4+ {[%clk 0:00:02]} 39. Kc5 {[%clk 0:00:05]}  Rf5+ {[%clk 0:00:02]} 40. Kb4 {[%clk 0:00:05]}  Ne5 {[%clk 0:00:02]} 41. Nxe5+ {[%clk 0:00:03]}  Rxe5 {[%clk 0:00:01]} 42. a8=Q {[%clk 0:00:03]}  Rxb2+ {[%clk 0:00:02]} 43. Rb3 {[%clk 0:00:04]}  Rf2 {[%clk 0:00:02]} 44. Qc6 {[%clk 0:00:03]}  Rf4+ {[%clk 0:00:02]} 45. Ka3 {[%clk 0:00:03]}  Ra5+ {[%clk 0:00:01]} 46. Kb2 {[%clk 0:00:04]}  Rf2+ {[%clk 0:00:02]} 47. Kc3 {[%clk 0:00:03]}  Raa2 {[%clk 0:00:03]} 48. Qe4+ {[%clk 0:00:03]}  Kh6 {[%clk 0:00:04]} 49. Qe8 {[%clk 0:00:03]}  Rac2+ {[%clk 0:00:03]} 50. Kb4 {[%clk 0:00:04]}  Rg2 {[%clk 0:00:03]} 51. Qh8+ {[%clk 0:00:03]}  Kg5 {[%clk 0:00:04]} 52. Rxg7+ {[%clk 0:00:04]}  Kh4 {[%clk 0:00:05]} 53. Rxg2 {[%clk 0:00:05]}  Rxg2 {[%clk 0:00:05]} 54. Qxf6+ {[%clk 0:00:06]}  Kg4 {[%clk 0:00:06]} 55. Qg6+ {[%clk 0:00:06]}  Kh4 {[%clk 0:00:07]} 56. Qxg2 {[%clk 0:00:07]} 1/2-1/2


[Site "https://www.chess.com"]